Cogmind - Beta 9.4 @@@ ROGUE MODE // 2020.03.16 @ 20:44:57 Player: JerichoBot Result: Destroyed by G-47 Trooper with Particle Gun Performance ------------- Evolutions (3) 1500 Regions Visited (4) 800 Robots Destroyed (67) 335 Value Destroyed (1166) 1166 Prototype IDs (4) 80 Alien Tech Used (0) 0 Bonus (8) 8 TOTAL SCORE: 3889 Bonus ------- High Alert Combat Kills 8 Cogmind --------- Core Integrity 0/700 Matter 287/500 Energy 7/100 System Corruption 0% Temperature Cool (9) Movement Flying (280) Ox3 Location -7/Factory Parts ------- > --- POWER (1) -------- (None) > --- PROPULSION (2) --- VTOL Module > --- UTILITY (8) ------ High-capacity Matter Pod Long-range Sensor Array > --- WEAPON (2) ------- High-powered Shotgun Advanced Assault Cannon > --- INVENTORY (4) ---- Enhanced Nuclear Core High-capacity Matter Pod (200) Peak State ------------ > --- POWER ------------ Cooled Ion Engine > --- PROPULSION ------- Wheel Wheel > --- UTILITY ---------- Large Storage Unit Improved Targeting Computer Improved Propulsion Shielding Hacking Suite System Shield Long-range Tractor Beam > --- WEAPON ----------- Pulse Rifle Katana > --- INVENTORY -------- Cooled Ion Engine Improved Flight Unit High-capacity Matter Pod High-capacity Matter Pod Advanced Weight Redist. System Heavy EM Pulse Gun Heavy Assault Rifle Rocket Launcher Katana [Rating: 28] Favorites ----------- Power Ion Engine Engine Ion Engine Power Core Enhanced Nuclear Core Propulsion Wheel Wheel Wheel Flight Unit VTOL Module Utility Large Storage Unit Device Sensor Array Storage Large Storage Unit Processor Improved Targeting Computer Hackware Hacking Suite Protection Weapon Shielding Weapon Light Assault Rifle Energy Gun Medium Laser Ballistic Gun Light Assault Rifle Ballistic Cannon Advanced Assault Cannon Launcher Rocket Launcher Slashing Weapon Katana Build | -11 -10 -9 -8 -7 ------- Run | Scr Mat Mat Mat Fac Slots Evolved 6 | . . 2 2 2 Power . | . . . . . Propulsion . | . . . . . Utility 6 | . . 2 2 2 Weapon . | . . . . . Parts Attached 104 | 6 10 44 27 17 Power 15 | 1 1 8 2 3 Engine 13 | 1 1 8 2 1 Core 2 | . . . . 2 Reactor . | . . . . . Propulsion 25 | 2 5 9 6 3 Treads . | . . . . . Leg . | . . . . . Wheel 20 | 2 5 8 5 . Hover . | . . . . . Flight 5 | . . 1 1 3 Utility 20 | 1 2 9 6 2 Device 7 | . . 4 2 1 Storage 6 | 1 1 2 1 1 Processor 2 | . . 2 . . Hackware 2 | . . . 2 . Protection 3 | . 1 1 1 . Artifact . | . . . . . Weapon 44 | 2 2 18 13 9 Energy Gun 19 | 1 . 7 8 3 Energy Cannon . | . . . . . Ballistic Gun 17 | 1 2 11 1 2 Ballistic Cannon 3 | . . . . 3 Launcher 2 | . . . 2 . Special Weapon . | . . . . . Impact Weapon . | . . . . . Slashing Weapon 3 | . . . 2 1 Piercing Weapon . | . . . . . Special Melee Weapon . | . . . . . Unidentified Prototypes 4 | . . 3 . 1 Parts Lost 35 | . 2 10 14 9 Power 5 | . . 2 2 1 Propulsion 6 | . . 2 3 1 Utility 11 | . . 3 5 3 Weapon 13 | . 2 3 4 4 Highest Loss Streak 7 | . 2 4 7 4 Average Slot Usage (%) 88 | . 96 94 92 38 Engine 10 | . 14 10 7 3 Wheel 19 | . 28 21 15 . Flight 1 | . . . 1 11 Device 10 | . . 18 15 2 Storage 9 | . 14 11 7 . Processor 4 | . . 5 9 2 Hackware 3 | . . . 17 2 Protection 6 | . 11 4 2 6 Energy Gun 4 | . . 6 7 2 Ballistic Gun 14 | . 27 14 . 2 Slashing Weapon 1 | . . . 7 2 Naked Turns . | . . . . . Heaviest Build 32 | 11 24 32 32 12 Greatest Support 32 | 26 26 26 32 11 Greatest Overweight (x) 2 | . 1 2 1 1 Average Overweight (x) . | . . 1 . . Largest Inventory Capacity 12 | 6 12 10 10 4 Average Capacity 8 | 5 9 10 9 4 Most Carried 10 | 2 10 10 10 4 Average Carried 7 | 1 6 9 8 3 Final Capacity 10 | 6 10 10 4 4 Final Carried 10 | 2 10 9 4 2 Class Distribution -------------------- 64% | Mutant 19% | Hacker-Mutant 16% | Scavenger-Mutant Dominant Class ---------------- Mutant | -10/Materials Mutant | -9/Materials Hacker-Mutant | -8/Materials Mutant | -7/Factory Resources | -11 -10 -9 -8 -7 ----------- Run | Scr Mat Mat Mat Fac Matter Collected 1989 | 196 302 862 526 103 Remotely 332 | . . . 332 . Salvage Created 1865 | . 264 974 499 128 Parts 125 | . 26 70 25 4 Haulers Intercepted 6 | . 1 4 1 . Recyclers Shooed 2 | . 2 . . . Parts Field Recycled . | . . . . . Retrieved Matter . | . . . . . Parts Self-Destructed . | . . . . . Prevented . | . . . . . Kills | -11 -10 -9 -8 -7 ------- Run | Scr Mat Mat Mat Fac Combat Hostiles Destroyed 44 | . 9 23 7 5 Melee 4 | . . . 3 1 Guns 34 | . 7 22 3 2 Cannons 2 | . . . . 2 AOE 3 | . 2 . 1 . Classes Destroyed 10 | . 5 4 1 . Worker 8 | . 2 4 1 1 Builder 2 | . . 1 1 . Hauler 6 | . 1 4 1 . Recycler 2 | . . . 2 . Mechanic 1 | . . 1 . . Operator 2 | . . 1 1 . Watcher 2 | . 1 1 . . Swarmer 26 | . 8 11 4 3 Grunt 12 | . 1 9 1 1 Sentry 6 | . . 3 2 1 Best Kill Streak 8 | . 6 8 5 3 Combat Bots Only 6 | . 6 6 3 2 Max Kills in Single Turn 2 | . 2 2 1 1 Gunslinging 1 | . . 1 . . Exploded 2 | . 2 . 1 . Melee 1 | . . . 1 1 Uniques/NPCs Destroyed . | . . . . . Combat | -11 -10 -9 -8 -7 -------- Run | Scr Mat Mat Mat Fac Damage Taken 4151 | . 353 1324 1120 1354 Core 1315 | . 103 228 269 715 Absorbed by Shields . | . . . . . Core Remaining (%) 63 | 100 58 43 51 . Volleys Fired 200 | 6 43 104 19 28 Largest 2 | 2 2 2 1 2 Hottest 106 | 60 60 106 63 73 Shots Fired 361 | 12 85 201 19 44 Gun 344 | 12 85 201 17 29 Cannon 15 | . . . . 15 Launcher 2 | . . . 2 . Special . | . . . . . Kinetic 225 | 6 80 105 6 28 Thermal 107 | . . 96 4 7 Explosive 2 | . . . 2 . Electromagnetic 27 | 6 5 . 7 9 Robot Hit Streak 20 | 3 6 15 11 20 Robot Miss Streak 6 | 3 6 5 2 2 Penetration Max . | . . . . . Secondary Targets 9 | . 1 8 . . Max Gunslinging Chain 1 | . 1 1 . . Shots Hit Robots 265 | 6 42 145 33 39 Core Hits 109 | . 21 56 18 14 Critical Hits 2 | . . 1 . 1 Critical Kills 1 | . . 1 . . Critical Parts Destroyed 1 | . . . . 1 Melee Attacks 33 | . . . 24 9 Impact . | . . . . . Slashing 33 | . . . 24 9 Piercing . | . . . . . Sneak Attacks 5 | . . . 4 1 Combat Hostiles . | . . . . . Follow-up Attacks . | . . . . . Damage Inflicted 4703 | 124 398 1960 1314 907 Guns 3056 | 97 339 1960 217 443 Cannons 245 | . . . . 245 Explosions 327 | 27 45 . 255 . Melee 1058 | . . . 842 216 Ramming 17 | . 14 . . 3 Kinetic 2167 | 43 329 1167 58 570 Thermal 997 | 27 45 793 67 65 Explosive 255 | . . . 255 . Electromagnetic 209 | 54 10 . 92 53 Impact . | . . . . . Slashing 1058 | . . . 842 216 Piercing . | . . . . . Highest Corruption 5 | . 2 5 . . Average Corruption 2 | . 2 5 . . Corruption Purged . | . . . . . Effects 13 | . 4 9 . . Message Errors 2 | . . 2 . . Matter Fused 1 | . . 1 . . Heat Flow Errors 1 | . 1 . . . Energy Discharges 4 | . 1 3 . . Data Loss (minor) 2 | . 1 1 . . Targeting Errors 2 | . 1 1 . . Weapon Failures 1 | . . 1 . . Overload Shots . | . . . . . Overflow Damage 137 | . . . 63 74 Projectiles . | . . . . . Explosions . | . . . . . Melee 137 | . . . 63 74 Knockbacks . | . . . . . Impact . | . . . . . Kinetic . | . . . . . Secondary . | . . . . . Self-Inflicted Damage 44 | . 43 . . 1 Shots 1 | . 1 . . . Rammed 2 | . 1 . . 1 Targets Rammed 2 | . 1 . . 1 Kicked . | . . . . . Crushed . | . . . . . Highest Temperature 443 | . 166 443 18 10 Average Temperature 103 | . 46 126 7 5 Received Heat Transfer 918 | . 12 345 288 273 Effects 3 | . . 3 . . Energy Bleed 1 | . . 1 . . Matter Decay 1 | . . 1 . . Short Circuit 1 | . . 1 . . Siege Activations . | . . . . . Robots Corrupted . | . . . . . Combat Hostiles . | . . . . . Parts Fried 1 | . . . 1 . Impact Corruptions . | . . . . . Robots Melted 1 | . . 1 . . Combat Hostiles 1 | . . 1 . . Parts Melted 9 | . 1 5 2 1 Heat Transferred 2778 | 50 100 2221 148 259 Parts Sabotaged . | . . . . . Parts Stolen . | . . . . . Parts Stripped . | . . . . . Power Chain Reactions 2 | 1 1 . . . Missiles Intercepted . | . . . . . Alert | -11 -10 -9 -8 -7 ------- Run | Scr Mat Mat Mat Fac Peak Influence 436 | . 174 436 321 152 Average Influence 169 | . 84 262 190 79 Maximum Alert Level 2 | . . 2 1 . Low Security (%) 60 | 100 100 16 61 100 Level 1 37 | . . 77 38 . Level 2 2 | . . 6 . . Level 3 . | . . . . . Level 4 . | . . . . . Level 5 . | . . . . . High Security . | . . . . . Max Security . | . . . . . Squads Dispatched 9 | . 2 4 1 2 Investigation 3 | . . 1 1 1 Extermination . | . . . . . Reinforcement 6 | . 2 3 . 1 Assault . | . . . . . Garrison . | . . . . . Intercept . | . . . . . Construction Impeded . | . . . . . Haulers Reinforced . | . . . . . Stealth | -11 -10 -9 -8 -7 --------- Run | Scr Mat Mat Mat Fac Distress Signals 9 | . 1 4 1 3 Communications Jammed . | . . . . . Distress Signals . | . . . . . Times Spotted 91 | . 16 37 26 12 Peak Tracking Total 10 | . 6 6 10 5 Tactical Retreats 5 | . 1 . 3 1 Traps | -11 -10 -9 -8 -7 ------- Run | Scr Mat Mat Mat Fac Traps Triggered 3 | . 1 2 . . Indirectly . | . . . . . Trap Hack Attempts . | . . . . . Triggered . | . . . . . Disarmed . | . . . . . Reprogrammed . | . . . . . Reused . | . . . . . Traps Extracted . | . . . . . Installed . | . . . . . Triggered . | . . . . . Machines | -11 -10 -9 -8 -7 ---------- Run | Scr Mat Mat Mat Fac Machines Disabled 1 | . . . . 1 Max in Single Turn 1 | . . . . 1 Machines Sabotaged . | . . . . . Garrisons Compromised . | . . . . . Overloaded Fab Kills . | . . . . . Fab Network Shutdowns . | . . . . . Hacking | -11 -10 -9 -8 -7 --------- Run | Scr Mat Mat Mat Fac Machines Accessed 12 | . 4 4 2 2 Terminals 10 | . 4 4 2 . Fabricators . | . . . . . Repair Stations 2 | . . . . 2 Recycling Units . | . . . . . Scanalyzers . | . . . . . Garrison Access . | . . . . . Total Hacks 30 | . 10 9 6 5 Successful 13 | . 4 5 3 1 Failed 17 | . 6 4 3 4 Catastrophic 6 | . 1 2 2 1 Database Lockouts . | . . . . . Manual 28 | . 11 11 6 . Terminals 25 | . 10 9 6 . Fabricators . | . . . . . Repair Stations 5 | . . . . 5 Recycling Units . | . . . . . Scanalyzers . | . . . . . Garrison Access . | . . . . . Terminal Hacks 7 | . 3 3 1 . Part Schematic 2 | . . 1 1 . Branch Access Points 1 | . . 1 . . Emergency Access Points 1 | . . 1 . . Terminal Index 1 | . 1 . . . Recall Investigation 1 | . 1 . . . Recall Assault 1 | . 1 . . . Fabricator Hacks . | . . . . . Repair Station Hacks 1 | . . . . 1 Refit 1 | . . . . 1 Recycling Unit Hacks . | . . . . . Scanalyzer . | . . . . . Garrison Access Hacks . | . . . . . Unauthorized Hacks 11 | . 2 5 4 . Terminals 5 | . 1 2 2 . Botnet 4 | . 1 2 1 . Operators 1 | . . . 1 . Fabricators . | . . . . . Repair Stations . | . . . . . Recycling Units . | . . . . . Scanalyzers . | . . . . . Garrison Access . | . . . . . Data Cores Recovered 1 | . . . 1 . Used . | . . . . . Hacking Detections 12 | . 4 4 2 2 Full Trace Events 4 | . 1 1 1 1 Feedback Events . | . . . . . Feedback Blocked . | . . . . . Robot Schematics Acquired . | . . . . . Robots Built . | . . . . . Matter . | . . . . . Time . | . . . . . Total Robot Build Rating . | . . . . . Part Schematics Acquired 2 | . . 1 1 . Parts Built . | . . . . . Matter . | . . . . . Time . | . . . . . Total Part Build Rating . | . . . . . Parts Repaired . | . . . . . Time . | . . . . . Parts Recycled . | . . . . . Recycled Matter . | . . . . . Retrieved Matter . | . . . . . Retrieved Components . | . . . . . Parts Scanalyzed . | . . . . . Part Schematics Acquired . | . . . . . Parts Damaged . | . . . . . Bothacking | -11 -10 -9 -8 -7 ------------ Run | Scr Mat Mat Mat Fac Used RIF Installer . | . . . . . Robots Hacked . | . . . . . Non-combat . | . . . . . Combat . | . . . . . Robot Hacks Applied . | . . . . . Relay Couplers Released . | . . . . . Robots Rewired . | . . . . . Allies Hacked . | . . . . . Hacks Repelled . | . . . . . Allies | -11 -10 -9 -8 -7 -------- Run | Scr Mat Mat Mat Fac Total Allies . | . . . . . Largest Group . | . . . . . Highest-Rated Group . | . . . . . Highest-Rated Ally . | . . . . . Total Orders . | . . . . . Ally Attacks . | . . . . . Total Damage . | . . . . . Kills . | . . . . . Allies Corrupted . | . . . . . Allies Melted . | . . . . . Intel | -11 -10 -9 -8 -7 ------- Run | Scr Mat Mat Mat Fac Robot Analysis Total . | . . . . . Derelict Logs Recovered . | . . . . . Drone Launches . | . . . . . Drone Recoveries . | . . . . . Exploration | -11 -10 -9 -8 -7 ------------- Run | Scr Mat Mat Mat Fac Turns Passed 2581 | 81 727 998 484 291 Spaces Moved 2023 | 59 620 650 361 333 Core 2 | 2 . . . . Treads . | . . . . . Legs . | . . . . . Wheels 1602 | 57 620 650 275 . Hover . | . . . . . Flight 419 | . . . 86 333 Fastest Speed 34 | 50 90 90 35 34 Average Speed 79 | 88 90 90 77 37 Slowest Speed 105 | 90 90 100 90 105 Overloaded Moves . | . . . . . Propulsion Burnouts . | . . . . . Robots Hopped 15 | . . . 9 6 Cave-ins Triggered . | . . . . . Exploration Rate (%) 33 | 5 66 46 41 8 Regions Visited 4 Branch Regions . Pre-discovered Areas . | . . . . . Known Exits Taken . | . . . . . Unknown Exits Taken 4 | 1 1 1 1 . Scrap Searched . | . . . . . Spaces Dug . | . . . . . Terrain Destroyed 22 | 3 2 . 15 2 Melee . | . . . . . Projectile 2 | . . . . 2 AOE 20 | 3 2 . 15 . Actions | -11 -10 -9 -8 -7 --------- Run | Scr Mat Mat Mat Fac Total 2583 | 72 720 853 500 438 Wait 140 | . 18 25 55 42 Move 1991 | 58 619 649 344 321 Hop 13 | . . . 7 6 Pick Up 45 | 2 16 12 11 4 Fast Attach 27 | 6 3 10 1 7 Attach 29 | . 2 8 11 8 Detach 4 | . . . . 4 Swap 48 | . 5 26 15 2 Drop 51 | . 13 19 13 6 Fire 200 | 6 43 104 19 28 Melee 33 | . . . 24 9 Ram 2 | . 1 . . 1 Kick . | . . . . . Crush . | . . . . . Escape Stasis . | . . . . . Rewire . | . . . . . Trap . | . . . . . Miscellaneous . | . . . . . Route ------- -11/Scrapyard -10/Materials -9/Materials (discovered 3 exits: *Mat / Min x2) -8/Materials -7/Factory History --------- Turn | Location | Event 16 | -11/Scrapyard | Discovered new exit (range 16) 82 | -11/Scrapyard | Entered Materials 313 | -10/Materials | Build established: Mutant 768 | -10/Materials | Discovered new exit (range 3) 809 | -10/Materials | Entered another Materials area 809 | -9/Materials | Evolved 2 slots: Utility x2 1016 | -9/Materials | Identified exit to Mines 1255 | -9/Materials | Lost 4 parts (1n2u1w) 1634 | -9/Materials | Core integrity fell below 50% 1782 | -9/Materials | Discovered new exit (range 16) 1807 | -9/Materials | Entered another Materials area 1807 | -8/Materials | Evolved 2 slots: Utility x2 2082 | -8/Materials | Build established: Hacker-Mutant 2253 | -8/Materials | Lost 7 parts (2p1n2u2w) 2288 | -8/Materials | Discovered new exit (range 5) 2291 | -8/Materials | Entered Factory 2291 | -7/Factory | Evolved 2 slots: Utility x2 2316 | -7/Factory | Lost 4 parts (1n2u1w) 2387 | -7/Factory | Core integrity fell below 50% 2417 | -7/Factory | Lost 4 parts (2u2w) 2447 | -7/Factory | Core integrity fell below 20% 2582 | -7/Factory | Destroyed by G-47 Trooper with Particle Gun Last Messages --------------- Acquired Adv. Assault Cannon. Dropped Autogun. Dropped Imp. Flight Unit. Acquired Lrn. Sensor Array. O-24 Administrator: "IFF HANDSHAKE FAILED. SECURING TERMINAL." Assembly Bed disabled. O-24 Administrator uses terminal to summon reinforcements. ALERT: Hostiles spotted, dispatching reinforcements to Terminal F017. O-24 Administrator locks terminal. Acquired Hpw. Shotgun. Lgt. Ion Engine destroyed. Imp. Propulsion Shielding destroyed. VTOL Module destroyed. U-05 Engineer builds a Wall. Y-54 Guardian suffers critical hit. Destroyed Imp. Deuterium Engine. Y-54 Guardian destroyed. K-01 Serf collects debris. K-01 Serf destroyed. G-47 Trooper destroyed. Map ----- +----------------------------------------------------+ | ?????????????????????????????????????????????????? | | ?????????????????????????????????????????????????? | | ?????????????????????????????????????????????????? | | ?????????????????????????????????????????????????? | | ?????????????????????????????????????????????????? | | ?????????????????????????????????????????????????? | | ?????????????????????????????????????????????????? | | ?????????????????????????????????????????????????? | | ????????????????????? ?????????????????????????? | | ??????????????????? ?????????????????????????? | | ??????????????????+ ?????????????????????????? | | ??????????????????# ?????????????????????????? | | ??????????????????# #????????????????????????? | | ??????????????????# ?#????????????????????????? | | ??????????????????# ?#????????????????????????? | | ??????????????????# #????????????????????????? | | ??????????????????# #?##???##????????????????? | | ??????????????????# #######;######???????????? | | ???????????#""""" # ?# #???????????? | | ???????????#"""F""# ?# #???????????? | | ############"""/""# # #???????????? | | !!! # #???????????? | | ? # #???????????? | | ![ """ """ #% #???????????? | | [[ """ """ %g% #???????????? | | """ """ #@ #???????????? | | # #???????????? | | """ """ # #???????????? | | """ """ # #???????????? | | == """ """ # #???????????? | | ==! ##############???????????? | | =!! #????????????????????????? | | #????????????????????????? | | """"" ######### #????????????????????????? | | """""" #???????# ?#????????????????????????? | | """""" ""??????# ? ???????????????????????? | | """""" ""#?????# ?????????????????????? | | ""#?????# ????????????????????? | | """""" T#?????# ???????????????????? | | ""?""" ""??????# ??????????????????? | | "???"" ""#?????##########?##??????????????????? | | "????" "????????????????? #???????????????????? | | ???? #??????????????????#???????????????????? | | "????" #??????????????????????????????????????? | | ?????" ???????????????????????????????????????? | | ?????????????????????????????????????????????????? | | ?????????????????????????????????????????????????? | | ?????????????????????????????????????????????????? | | ?????????????????????????????????????????????????? | | ?????????????????????????????????????????????????? | +----------------------------------------------------+ Best States ------------- Heat Dissipation 38 Energy Generation 17 Energy Capacity 300 Matter Stores 300 Matter Capacity 500 Sight Range 16 Robot Scan Range 20 Terrain Scan Density 10 Additional Mass Support 9 Propulsion Shielding 66 Weapon Shielding 33 Evasion (%) 63 Targeting Accuracy 6 Recoil Reduction 2 Offensive Hacking 10 Defensive Hacking 10 Item Schematics ----------------- Weight Redist. System | -9/Materials | Hacked Hacking Suite | -8/Materials | Hacked Robot Schematics ------------------ None Fabricated ------------ Nothing Alien Tech Used ----------------- None Achievements -------------- root@ Challenges ------------ None Game ------ Seed SuspensionAlloyExtractor Manual? 0 Play Time 00:49:30 Cumulative 11.6 hours Start 2020.03.16 @ 19:55:27 End 2020.03.16 @ 20:44:57 Sessions 1 Manual Loads 0 Difficulty Rogue Special Mode None Game No. 14 Rogue 14 Adventurer 0 Explorer 0 Win Type - Total 0 Types 0/0/0/0/0/0/0 Lore% 8 Gallery% 20 Achievement% 16 Wizard Run 0 Options --------- ASCII 0 Keyboard 0 Movement Arrows Keybinds 0 Fullscreen 2 Font 16/SmallcapsGlow Map View 75x55 Tactical HUD 0 Map Filters NONE Filters NONE Steam 0 RUN: 2501d8e2-8b85-4474-a987-5dd59b15d180